Cogmind - Beta 15 @@@ ROGUE MODE // 2025.05.12 @ 19:00:46 Player: Henry Result: Destroyed by G-47 Trooper with Particle Gun Performance ------------- Evolutions (0) 0 Regions Visited (1) 200 Robots Destroyed (16) 80 Value Destroyed (326) 326 Prototype IDs (0) 0 Alien Tech Used (0) 0 Bonus (0) 0 TOTAL SCORE: 606 Bonus ------- None Cogmind --------- Core Integrity 0/250 Matter 81/300 Energy 250/250 System Corruption 0% Temperature Cool (15) Movement Walking (190) Ox1 Location -10/Materials Parts ------- > --- POWER (1) -------- Ion Engine > --- PROPULSION (2) --- Aluminum Leg > --- UTILITY (2) ------ Small Storage Unit ECM Suite > --- WEAPON (2) ------- Assault Rifle Assault Rifle > --- INVENTORY (8) ---- Ion Engine Light Nuclear Core Aluminum Leg Aluminum Leg Grenade Launcher Mining Laser Peak State ------------ > --- POWER ------------ Ion Engine > --- PROPULSION ------- Aluminum Leg Aluminum Leg > --- UTILITY ---------- Small Storage Unit ECM Suite > --- WEAPON ----------- Assault Rifle Assault Rifle > --- INVENTORY -------- Ion Engine Assault Rifle Grenade Launcher [Rating: 7] Favorites ----------- Power Ion Engine Engine Ion Engine Propulsion Aluminum Leg Leg Aluminum Leg Utility Small Storage Unit Device ECM Suite Storage Small Storage Unit Weapon Assault Rifle Ballistic Gun Assault Rifle Launcher Grenade Launcher Build | -11 -10 ------- Run | Yrd Mat Slots Evolved . | . . Power . | . . Propulsion . | . . Utility . | . . Weapon . | . . Parts Attached 9 | 6 3 Power 1 | 1 . Engine 1 | 1 . Core . | . . Reactor . | . . Propulsion 2 | 2 . Treads . | . . Leg 2 | 2 . Wheel . | . . Hover . | . . Flight . | . . Utility 2 | 1 1 Device 1 | . 1 Storage 1 | 1 . Processor . | . . Hackware . | . . Protection . | . . Artifact . | . . Weapon 4 | 2 2 Energy Gun . | . . Energy Cannon . | . . Ballistic Gun 3 | 2 1 Ballistic Cannon . | . . Launcher 1 | . 1 Special Weapon . | . . Impact Weapon . | . . Slashing Weapon . | . . Piercing Weapon . | . . Special Melee Weapon . | . . Unidentified Prototypes . | . . Parts Lost 2 | . 2 Power . | . . Propulsion 1 | . 1 Utility . | . . Weapon 1 | . 1 Highest Loss Streak 2 | . 2 To Critical Strikes . | . . Average Backups 3 | 1 4 Power 1 | . 1 Propulsion . | . . Utility . | . . Weapon 1 | . 2 Tool/Special . | . . Unused Backups 5 | . 5 Power 2 | . 2 Propulsion 2 | . 2 Utility . | . . Weapon 1 | . 1 Tool/Special . | . . Average Slot Usage (%) 97 | . 97 Engine 14 | . 14 Leg 28 | . 28 Device 11 | . 11 Storage 14 | . 14 Ballistic Gun 28 | . 28 Peak Build Rating 7 | 6 7 Average Rating 6 | 4 6 On Entrance 3 | . 6 Naked Turns . | . . Heaviest Build 16 | 14 16 Greatest Support 20 | 20 20 Greatest Overweight (x) 1 | 1 . Average Overweight (x) . | . . Largest Inventory Capacity 8 | 8 8 Average Capacity 7 | 6 8 Most Carried 7 | 2 7 Average Carried 3 | 1 4 Final Capacity 8 | 8 8 Final Carried 6 | 2 6 Class Distribution -------------------- 100% | Mutant Dominant Class ---------------- Mutant | -10/Materials Resources | -11 -10 ----------- Run | Yrd Mat Matter Collected 235 | 188 47 Remotely . | . . Salvage Created 470 | . 470 Parts 26 | . 26 Haulers Intercepted 1 | . 1 Recyclers Shooed 3 | . 3 Parts Field Recycled . | . . Retrieved Matter . | . . Parts Self-Destructed . | . . Prevented . | . . Kills | -11 -10 ------- Run | Yrd Mat Combat Hostiles Destroyed 8 | . 8 Guns 3 | . 3 AOE 5 | . 5 Classes Destroyed 7 | . 7 Builder 2 | . 2 Tunneler 1 | . 1 Hauler 1 | . 1 Recycler 3 | . 3 Watcher 1 | . 1 Swarmer 3 | . 3 Grunt 5 | . 5 Best Kill Streak 16 | . 16 Combat Bots Only 6 | . 6 Max Kills in Single Turn 4 | . 4 Gunslinging . | . . Exploded 3 | . 3 Melee . | . . Uniques/NPCs Destroyed . | . . Combat | -11 -10 -------- Run | Yrd Mat Hostile Shots Fired 49 | . 49 Missed 17 | . 17 Hits 32 | . 32 Projectile 32 | . 32 Damage Taken 598 | . 598 Core 262 | . 262 Absorbed by Shields . | . . Core Remaining (%) 100 | 100 . Volleys Fired 25 | . 25 Largest 2 | . 2 Hottest 50 | . 50 Shots Fired 50 | . 50 Gun 48 | . 48 Cannon . | . . Launcher 2 | . 2 Special . | . . Kinetic 48 | . 48 Thermal . | . . Explosive 2 | . 2 Electromagnetic . | . . Robot Hit Streak 9 | . 9 Robot Miss Streak 5 | . 5 Penetration Max . | . . Secondary Targets . | . . Shots Hit Robots 33 | . 33 Core Hits 23 | . 23 Critical Kills . | . . Critical Parts Destroyed . | . . Critical Strikes . | . . Melee Attacks . | . . Impact . | . . Slashing . | . . Piercing . | . . Sneak Attacks . | . . Combat Hostiles . | . . Follow-up Attacks . | . . Damage Inflicted 1122 | . 1122 Guns 429 | . 429 Cannons . | . . Explosions 693 | . 693 Melee . | . . Ramming . | . . Kinetic 429 | . 429 Thermal . | . . Explosive 693 | . 693 Electromagnetic . | . . Impact . | . . Slashing . | . . Piercing . | . . Highest Corruption . | . . Average Corruption . | . . Corruption Purged . | . . Corruption Blocked . | . . Overload Shots . | . . Overflow Damage 10 | . 10 Projectiles . | . . Explosions 10 | . 10 Melee . | . . Knockbacks . | . . Impact . | . . Kinetic . | . . Secondary . | . . Self-Inflicted Damage 175 | . 175 Shots 2 | . 2 Rammed . | . . Targets Rammed . | . . Kicked . | . . Crushed . | . . Highest Temperature 8 | . 8 Average Temperature 2 | . 2 Received Heat Transfer 201 | . 201 Siege Activations . | . . Martial Activations . | . . Shielding Activations . | . . Robots Disrupted . | . . Combat Hostiles . | . . Robots Corrupted . | . . Combat Hostiles . | . . Parts Fried . | . . Impact Corruptions . | . . Robots Melted . | . . Combat Hostiles . | . . Parts Melted . | . . Heat Transferred . | . . Parts Sabotaged . | . . Parts Stolen . | . . Parts Stripped . | . . Power Chain Reactions . | . . Alert | -11 -10 ------- Run | Yrd Mat Maximum Alert Level 1 | . 1 Low Security (%) 66 | 100 56 Level 1 33 | . 43 Level 2 . | . . Level 3 . | . . Level 4 . | . . Level 5 . | . . High Security . | . . Max Security . | . . Peak Influence 322 | . 322 Initial . | . . Average 109 | . 142 Influence Increases 347 | . 347 Destroy 0b10 Robot/C 160 | . 160 Destroy 0b10 Robot/NC 40 | . 40 Destroy Leader 34 | . 34 Disable Machine 90 | . 90 Destroy Structure 23 | . 23 Influence Decreases 85 | . 85 Time Decay 65 | . 65 Lost Part 20 | . 20 Squads Dispatched 2 | . 2 Investigation . | . . Extermination . | . . Reinforcement 2 | . 2 Assault . | . . Garrison . | . . Intercept . | . . Searches Triggered . | . . Construction Impeded . | . . Haulers Reinforced . | . . Active Scanning Responses . | . . Cargo Convoy Interrupts . | . . Stealth | -11 -10 --------- Run | Yrd Mat Distress Signals 1 | . 1 Communications Jammed . | . . Distress Signals . | . . Times Spotted 15 | . 15 Peak Tracking Total 9 | . 9 Tactical Retreats . | . . Traps | -11 -10 ------- Run | Yrd Mat Traps Triggered 1 | . 1 Indirectly . | . . Trap Hack Attempts . | . . Triggered . | . . Disarmed . | . . Reprogrammed . | . . Reused . | . . Traps Extracted . | . . Installed . | . . Triggered . | . . Machines | -11 -10 ---------- Run | Yrd Mat Machines Disabled 6 | . 6 Max in Single Turn 4 | . 4 Machines Repaired . | . . Machines Dismantled . | . . Machines Sabotaged . | . . Overloaded Fab Kills . | . . Hacking | -11 -10 --------- Run | Yrd Mat Machines Accessed . | . . Terminals . | . . Fabricators . | . . Repair Stations . | . . Recycling Units . | . . Scanalyzers . | . . Garrison Access . | . . Total Hacks . | . . Successful . | . . Failed . | . . Catastrophic . | . . Database Lockouts . | . . Manual . | . . Terminals . | . . Fabricators . | . . Repair Stations . | . . Recycling Units . | . . Scanalyzers . | . . Garrison Access . | . . Terminal Hacks . | . . Fabricator Hacks . | . . Repair Station Hacks . | . . Recycling Unit Hacks . | . . Scanalyzer . | . . Garrison Access Hacks . | . . Unauthorized Hacks . | . . Terminals . | . . Fabricators . | . . Repair Stations . | . . Recycling Units . | . . Scanalyzers . | . . Garrison Access . | . . Data Cores Recovered . | . . Used . | . . Hacking Detections . | . . Full Trace Events . | . . Feedback Events . | . . Feedback Blocked . | . . Robot Schematics Acquired . | . . Robots Built . | . . Authchips . | . . Time . | . . Total Robot Build Rating . | . . Part Schematics Acquired . | . . Parts Built . | . . Authchips . | . . Time . | . . Total Part Build Rating . | . . Parts Repaired . | . . Time . | . . Parts Recycled . | . . Recycled Matter . | . . Retrieved Matter . | . . Retrieved Components . | . . Parts Scanalyzed . | . . Part Schematics Acquired . | . . Parts Damaged . | . . Bothacking | -11 -10 ------------ Run | Yrd Mat Used RIF Installer . | . . Robots Hacked . | . . Non-combat . | . . Combat . | . . Robot Hacks Applied . | . . Relay Couplers Released . | . . Fabnet Peak Effective % . | . . Robots Rewired . | . . Allies Hacked . | . . Hacks Repelled . | . . Allies | -11 -10 -------- Run | Yrd Mat Total Allies . | . . Largest Group . | . . Highest-Rated Group . | . . Highest-Rated Ally . | . . Total Orders . | . . Ally Attacks . | . . Total Damage . | . . Kills . | . . Allies Corrupted . | . . Allies Melted . | . . Intel | -11 -10 ------- Run | Yrd Mat Active Infowar (turns) 167 | . 167 ECM 167 | . 167 Robot Analysis Total . | . . Derelict Logs Recovered . | . . Drone Launches . | . . Drone Recoveries . | . . Exploration | -11 -10 ------------- Run | Yrd Mat Turns Passed 253 | 59 194 Spaces Moved 134 | 44 90 Core 10 | 10 . Treads . | . . Legs 124 | 34 90 Wheels . | . . Hover . | . . Flight . | . . Fastest Speed 50 | 50 120 Average Speed 115 | 107 120 Slowest Speed 120 | 120 120 Overloaded Moves . | . . Propulsion Burnouts . | . . Robots Hopped . | . . Potential Cave-ins . | . . Cave-ins Triggered . | . . Exploration Rate (%) 15 | 3 28 Regions Visited 1 Branch Regions . Pre-discovered Areas . | . . Known Exits Taken . | . . Unknown Exits Taken 1 | 1 . Scrap Searched . | . . Spaces Dug . | . . Terrain Destroyed 25 | . 25 Melee . | . . Projectile . | . . AOE 25 | . 25 Terrain Rammed . | . . Walls Destroyed . | . . Machines Disabled . | . . Actions | -11 -10 --------- Run | Yrd Mat Total 176 | 52 124 Wait 1 | 1 . Move 133 | 43 90 Hop . | . . Pick Up 7 | 2 5 Fast Attach 7 | 6 1 Attach 1 | . 1 Detach . | . . Swap 2 | . 2 Drop . | . . Fire 25 | . 25 Melee . | . . Ram . | . . Kick . | . . Crush . | . . Escape Stasis . | . . Rewire . | . . Trap . | . . Miscellaneous . | . . Route ------- -11/Scrapyard -10/Materials History --------- Turn | Location | Event 14 | -11/Scrapyard | Discovered new exit (range 15) 60 | -11/Scrapyard | Entered Materials 174 | -10/Materials | Core integrity fell below 50% 231 | -10/Materials | Core integrity fell below 20% 254 | -10/Materials | Destroyed by G-47 Trooper with Particle Gun Last Messages --------------- 00173_ Nuclear Reactor explodes. 00173_ R-06 Scavenger destroyed. 00173_ U-05 Engineer destroyed. 00173_ K-01 Serf collects debris. 00174_ Acquired Aluminum Leg. 00175_ Nuclear Reactor explodes. 00176_ K-01 Serf collects debris. 00177_ Acquired Lgt. Nuclear Core. 00178_ T-07 Excavator is excavating. 00179_ K-01 Serf collects debris. 00179_ Acquired Aluminum Leg. 00180_ K-01 Serf collects debris. 00183_ T-07 Excavator is excavating. 00184_ K-01 Serf collects debris. 00187_ T-07 Excavator is excavating. 00187_ Acquired 47 matter. 00187_ K-01 Serf collects debris. 00234_ Assault Rifle destroyed. 00235_ The unstable cave ceiling collapses. 00252_ Aluminum Leg destroyed. Map ----- +----------------------------------------------------+ | ?????????????????????????????????????????????????? | | ??????????????????########???????????????????????? | | ??????????????##### #???????????????????????? | | ???????######## # """ #???????????????????????? | | ???????# # # """ #???????????????????????? | | ???????# # # """ #???????????????????????? | | ???????# """ + + #???????????????????????? | | ???????# """ # # #???????????????????????? | | ???????# """ # ########???????????????????????? | | ???????# # #??????????????????????????????? | | ???????######## #??????????????????????????????? | | ??????????????# #??????????????????????????????? | | ??????????????# #??????????????????????????????? | | ???????######## #??????????????????????????????? | | ???????# #??????????????????????????????? | | ???????# #??????????????????????????????? | | ???????# #??????????????????????????????? | | ???????# ########??????????????????????????????? | | ???????# #?????????????????????????????????????? | | ???????# #?????????????????????????????????????? | | ???????# #?????????????????????????????????????? | | ???????# #?????????????? ??????????????????????? | | ???????# ##############+#########+## ?????????? | | ???????# ^ ????????? | | ???????# g "????????? | | ???????# !=| @ gt ????????? | | ???????#%% != ##/########???????????????? | | ###+### !|| # #???????????????????? | | # """ #???????????????????? | | + "R #???????????????????? | | %! |= # """ #???????????????????? | | ### ## # #???????????????????? | | ??# # #???????????????????? | | ??# = % # """ #???????????????????? | | ?????? ! # """ #???????????????????? | | ??????# ! # """ #???????????????????? | | ?????## % # #???????????????????? | | ?????# #???????????????????? | | ?????# # ]#???????????????????? | | ?????# ######???????????????????? | | ?????# #????????????????????????? | | ?????# ! #????????????????????????? | | ?????## #????????????????????????? | | ??????# #????????????????????????? | | ??????## ! ???????????????????????? | | ???????# ####??????????????????????? | | ???????# #?????????????????????????? | | ???????# """ """ ###?????????????????????????? | | ???????# """ """ #???????????????????????????? | | ???????## ?"" """ "???????????????????????????? | +----------------------------------------------------+ Best States ------------- Heat Dissipation 25 Energy Generation 10 Energy Capacity 250 Matter Stores 228 Matter Capacity 300 Sight Range 16 Terrain Scan Density 10 ECM Strength 1 Evasion (%) 55 Item Schematics ----------------- None Robot Schematics ------------------ None Fabricated ------------ Nothing Repaired ---------- Nothing Alien Tech Used ----------------- None Achievements -------------- None Challenges ------------ None Game ------ Seed VariableRingSpecial Manual? 0 Play Time 00:05:21 Cumulative 449.5 hours Start 2025.05.12 @ 18:57:22 End 2025.05.12 @ 19:00:46 Sessions 1 Manual Loads 0 Difficulty Rogue Special Mode None Game No. 167 Rogue 167 Adventurer 0 Explorer 0 Win Type - Total 0 Types 0/0/0/0/0/0/0/0/0/0 Lore% 15 Gallery% 42 Achievement% 29 Wizard Run 0 Options --------- Layout 1 ASCII 0 Keyboard 1 Movement Numpad Keybinds 0 Fullscreen 1 Font 24/Smallcaps Map View 50x35 Zoom Use 0% Tactical HUD 1 Map Filters NONE Filters NONE Steam 1 RUN: f6af9c08-4122-47ed-9b66-196d5b5d06f3